bitfinex-derivatives/quotes_ETHF0:USTF0_20230105
["timestamp","ask_amount","ask_price","bid_price","bid_amount"]
[1672900876849,1.78888447,1251.1,1251.0,14.88298949]
[1672900877060,1.78888447,1251.1,1251.0,18.09078949]
[1672900877374,1.78888447,1251.1,1251.0,14.88298949]
[1672900877583,1.78888447,1251.1,1251.0,18.09078949]
[1672900878647,1.78888447,1251.1,1251.0,20.48540653]
[1672900880432,1.78888447,1251.1,1251.0,17.27760653]
[1672900880644,1.78888447,1251.1,1251.0,18.09078949]
[1672900880853,2.98159241,1251.1,1251.0,18.09078949]
[1672900881591,1.78888447,1251.1,1251.0,20.48543286]
[1672900881803,2.98155151,1251.1,1251.0,18.09078949]
[1672900882321,2.98155151,1251.1,1251.0,14.88298949]
[1672900882537,1.78888447,1251.1,1251.0,18.09078949]
[1672900883798,2.98161155,1251.1,1251.0,18.09078949]
[1672900884114,2.98161428,1251.1,1251.0,18.09078949]
[1672900884847,1.78888447,1251.1,1251.0,18.09078949]
[1672900885261,2.98162021,1251.1,1251.0,18.09078949]
[1672900885584,1.78888447,1251.1,1251.0,18.09078949]
[1672900885793,2.98163662,1251.1,1251.0,18.09078949]
[1672900886419,1.78888447,1251.1,1251.0,18.09078949]
[1672900886840,2.98170564,1251.1,1251.0,18.09078949]
[1672900887056,1.78888447,1251.1,1251.0,18.09078949]
[1672900887266,2.98170268,1251.1,1251.0,18.09078949]
[1672900887791,2.98170515,1251.1,1251.0,18.09078949]
[1672900888107,1.78888447,1251.1,1251.0,18.09078949]
[1672900888946,2.98174126,1251.1,1251.0,18.09078949]
[1672900889159,1.78888447,1251.1,1251.0,18.09078949]
[1672900889367,1.78888447,1251.1,1251.0,20.48550411]
[1672900890626,1.78888447,1251.1,1251.0,18.09078949]
[1672900890831,1.78888447,1251.1,1251.0,17.49924929]
[1672900891468,1.78954863,1251.1,1251.0,9.51924929]
[1672900891678,4.28954863,1251.1,1251.0,7.01924929]
[1672900891884,2.5,1251.1,1251.0,5.60275999]
[1672900892414,2.5,1251.1,1251.0,7.01927066]
[1672900892832,2.5,1251.1,1251.0,5.60275999]
[1672900893262,2.5,1251.1,1251.0,7.01927088]
[1672900893998,2.5,1251.1,1251.0,3.81147088]
[1672900895785,2.98347093,1251.2,1251.0,6.31147088]
[1672900896097,2.98347093,1251.2,1251.1,4.29680532]
[1672900896302,2.98347093,1251.2,1251.1,5.4946756]
[1672900896513,2.98347093,1251.2,1251.1,4.29680532]
[1672900897145,2.98347093,1251.2,1251.1,1.79680532]
[1672900898728,2.98347093,1251.2,1251.1,2.99486082]
[1672900899148,9.27096299,1251.3,1251.1,1.1980555]
[1672900900719,3.2078,1251.2,1251.1,1.1980555]
[1672900904513,6.06316299,1251.3,1251.1,1.1980555]
[1672900904828,3.2078,1251.2,1251.1,1.1980555]
[1672900906403,6.19169028,1251.2,1251.1,2.99486082]
[1672900906614,2.98389028,1251.2,1251.1,2.99486082]
[1672900907767,2.98389028,1251.2,1251.1,1.79680532]
[1672900912389,2.98389028,1251.2,1251.1,4.19176531]
[1672900912595,2.98389028,1251.2,1251.1,1.79680532]
[1672900913436,2.98389028,1251.2,1251.1,4.19176531]
[1672900914286,5.37141767,1251.2,1251.1,4.19176531]
[1672900914489,5.37142177,1251.2,1251.1,4.19176531]
[1672900915659,2.38753149,1251.2,1251.1,2.39495999]
[1672900918079,2.38753149,1251.2,1251.1,5.60275999]
[1672900918288,5.37142177,1251.2,1251.1,5.60275999]
[1672900918490,5.37142177,1251.2,1251.1,7.39934638]
[1672900918914,2.98389028,1251.2,1251.1,1.79666701]
[1672900919230,2.98389028,1251.2,1251.1,5.4944534]
[1672900919959,2.98389028,1251.2,1251.1,2.9944534]
[1672900920382,6.77096299,1251.2,1251.0,2.9944534]
[1672900920596,2.98510532,1251.1,1251.0,2.9944534]
[1672900920805,2.98510532,1251.1,1251.0,1.19778639]
[1672900920806,2.5,1251.1,1251.0,1.19778639]
[1672900921016,5.48508202,1251.1,1251.0,2.9944534]
[1672900921229,2.5,1251.1,1251.0,2.9944534]
[1672900922175,5.7078,1251.1,1251.0,2.9944534]
[1672900922489,5.7078,1251.1,1251.0,1.19778639]
[1672900923539,8.6922655,1251.1,1251.0,1.19778639]
[1672900923749,5.7078,1251.1,1251.0,1.19778639]
[1672900923961,8.69210972,1251.1,1251.0,1.19778639]
[1672900924908,8.69208046,1251.1,1251.0,1.19778639]
[1672900927851,5.48428046,1251.1,1251.0,1.19778639]
[1672900928054,8.69208046,1251.1,1251.0,1.19778639]
[1672900931740,5.48428046,1251.1,1251.0,1.19778639]
[1672900932581,8.69208046,1251.1,1251.0,1.19778639]
[1672900933103,5.48428046,1251.1,1251.0,1.19778639]
[1672900933320,8.69208046,1251.1,1251.0,1.19778639]
[1672900934679,5.48428046,1251.1,1251.0,1.19778639]
[1672900934889,5.7078,1251.1,1250.9,1.19778639]
[1672900935104,2.98212427,1251.0,1250.9,1.19778639]
[1672900935415,2.98212427,1251.0,1250.8,16.9524534]
[1672900935621,8.09261967,1250.9,1250.8,2.9944534]
[1672900938685,4.88481967,1250.9,1250.8,2.9944534]
[1672900938895,8.09261967,1250.9,1250.8,2.9944534]
[1672900939102,9.88086822,1250.9,1250.8,2.9944534]
[1672900940044,7.38086822,1250.9,1250.8,2.9944534]
[1672900940255,4.99604855,1250.9,1250.8,1.79666701]
[1672900941620,2.98032741,1250.9,1250.8,6.691627]
[1672900941837,2.98032741,1250.9,1250.8,4.89495999]
[1672900942149,1.19207886,1250.9,1250.8,6.31159949]
[1672900947202,2.98032741,1250.9,1250.8,6.31159949]
[1672900947412,2.97392424,1250.9,1250.8,6.68929535]
[1672900947622,2.97392424,1250.9,1250.8,4.89495999]
[1672900949624,2.97392424,1250.9,1250.8,6.31161851]
[1672900950038,2.97392424,1250.9,1250.8,4.89495999]
[1672900950249,2.97392424,1250.9,1250.8,6.31162759]
[1672900950460,2.97392424,1250.9,1250.8,4.89495999]
[1672900951201,2.97392424,1250.9,1250.8,3.81162717]
[1672900951400,2.97392424,1250.9,1250.8,2.39495999]
[1672900951611,1.78824855,1250.9,1250.8,6.6897504]
[1672900951828,1.78824855,1250.9,1250.8,4.89495999]
[1672900952668,1.78824855,1250.9,1250.8,2.39495999]
[1672900954135,1.78824855,1250.9,1250.8,4.19013246]
[1672900954343,4.28824855,1250.9,1250.8,4.19013246]
[1672900955094,4.28824855,1250.9,1250.8,2.39495999]
[1672900955609,6.67306822,1250.9,1250.8,2.39495999]
[1672900955816,1.78824855,1250.9,1250.8,2.39495999]
[1672900956229,4.28824855,1250.9,1250.8,2.39495999]
[1672900956555,1.78824855,1250.9,1250.8,4.89495999]
[1672900956760,1.78824855,1250.9,1250.8,6.31163352]
[1672900957287,1.78824855,1250.9,1250.8,6.79813371]
[1672900958763,1.78824855,1250.9,1250.8,4.40317372]
[1672900958970,1.78824855,1250.9,1250.8,6.79854208]
[1672900959389,4.17306822,1250.9,1250.8,4.40317372]
[1672900959913,1.78824855,1250.9,1250.8,4.40317372]
[1672900960132,1.78824855,1250.9,1250.8,6.90317372]
[1672900962137,1.78824855,1250.9,1250.8,10.11097372]
[1672900963504,4.17306822,1251.0,1250.8,18.09097372]
[1672900963717,4.17306822,1251.0,1250.9,6.91151378]
[1672900964228,1.78824855,1251.0,1250.9,6.91151378]
[1672900964648,1.78824855,1251.0,1250.9,10.11931378]
[1672900966665,1.78824855,1251.0,1250.9,14.89151378]
[1672900966873,1.78824855,1251.0,1250.9,18.09931378]
[1672900971080,1.78824855,1251.0,1250.9,20.49351957]
[1672900971711,1.78824855,1251.0,1250.9,17.49867932]
[1672900972760,1.78824855,1251.0,1250.9,14.29087932]
[1672900972970,1.78824855,1251.0,1250.9,20.49351957]
[1672900973181,1.78824855,1251.0,1250.9,17.49867932]
[1672900974446,1.78824855,1251.0,1250.9,14.29087932]
[1672900974654,1.78824855,1251.0,1250.9,17.49867932]
[1672900975489,1.78824855,1251.0,1250.9,20.49351957]
[1672900975807,1.78824855,1251.0,1250.9,18.09931378]
[1672900977069,1.78824855,1251.0,1250.9,20.49353002]
[1672900977283,1.78824855,1251.0,1250.9,18.09931378]
[1672900978121,1.78824855,1251.0,1250.9,20.49375022]
[1672900978962,1.78824855,1251.0,1250.9,17.28595022]
[1672900979164,1.78824855,1251.0,1250.9,18.09931378]
[1672900980435,1.78824855,1251.0,1250.9,20.49406088]
[1672900980634,1.78824855,1251.0,1250.9,18.09931378]
[1672900981275,1.78824855,1251.0,1250.9,20.49407443]
[1672900981592,1.78824855,1251.0,1250.9,18.09931378]
[1672900982111,1.78824855,1251.0,1250.9,20.49424279]
[1672900982315,1.78824855,1251.0,1250.9,18.09931378]
[1672900982740,1.78824855,1251.0,1250.9,14.89151378]
[1672900982952,1.78824855,1251.0,1250.9,18.09931378]
[1672900983371,1.78824855,1251.0,1250.9,14.89151378]
[1672900983588,1.78824855,1251.0,1250.9,18.09931378]
[1672900985266,1.78824855,1251.0,1250.9,10.11931378]
[1672900985584,4.17306822,1251.0,1250.9,7.01923292]
[1672900986531,2.38481967,1251.0,1250.9,2.39475939]
[1672900986735,2.38481967,1251.0,1250.9,3.81136715]
[1672900987369,1.79040107,1251.0,1250.9,7.01916715]
[1672900987586,4.29040107,1251.0,1250.9,10.0140074]
[1672900987787,1.79040107,1251.0,1250.9,10.0140074]
[1672900988526,1.79040107,1251.0,1250.9,7.61924801]
[1672900990418,1.79040107,1251.0,1250.9,4.41144801]
[1672900990629,1.79040107,1251.0,1250.9,7.61924801]
[1672900994511,1.79040107,1251.0,1250.9,10.01451359]
[1672900994720,4.17522074,1251.0,1250.9,10.01451359]
[1672900994934,2.38481967,1251.0,1250.9,7.01967334]
[1672900995147,4.88481967,1251.0,1250.9,3.81187334]
[1672900996304,2.38481967,1251.0,1250.9,3.81187334]
[1672900996728,2.38481967,1251.0,1250.9,6.80671359]
[1672900998408,2.38481967,1251.0,1250.9,3.81187334]
[1672900998623,2.38481967,1251.0,1250.9,6.80671359]
[1672900999771,2.38481967,1251.0,1250.9,3.81187334]
[1672901000513,2.38481967,1251.0,1250.9,6.80671359]
[1672901002503,2.38481967,1251.0,1250.9,4.41144801]
[1672901008926,2.38481967,1251.0,1250.9,6.80837943]
[1672901011973,2.38259814,1251.0,1250.9,6.80837943]
[1672901012184,2.38259814,1251.0,1250.9,3.81353918]
[1672901012808,2.38259814,1251.0,1250.9,6.80837943]
[1672901013747,2.38259814,1251.0,1250.9,3.81353918]
[1672901013962,2.38259814,1251.0,1250.9,6.80837943]
[1672901015019,2.38259814,1251.0,1250.9,4.41144801]
[1672901015226,2.38259814,1251.0,1250.9,6.80820411]
[1672901015544,2.38259814,1251.0,1250.9,6.80823149]
[1672901017020,2.38259814,1251.0,1250.9,4.41144801]
[1672901017227,2.38259814,1251.0,1250.9,6.80825893]
[1672901017972,2.38259814,1251.0,1250.9,4.41144801]
[1672901019651,2.38259814,1251.0,1250.9,6.80831515]
[1672901019964,2.38259814,1251.0,1250.9,4.41144801]
[1672901020906,2.38259814,1251.0,1250.9,6.80830912]
[1672901021122,2.38259814,1251.0,1250.9,6.80831471]
[1672901027734,2.98212427,1251.0,1250.9,2.3968667]
[1672901028165,2.98212427,1251.0,1250.9,4.19473632]
[1672901029215,5.48212427,1251.0,1250.9,2.3968667]
[1672901030058,5.48212427,1251.0,1250.9,3.81352221]
[1672901030790,5.48212427,1251.0,1250.9,2.3968667]
[1672901031107,5.48212427,1251.0,1250.9,1.79778906]
[1672901031421,5.48212427,1251.0,1250.9,4.19465576]
[1672901031943,8.68992427,1251.0,1250.9,1.79778906]
[1672901032896,8.68992427,1251.0,1250.9,4.19465576]
[1672901034048,8.68992427,1251.0,1250.9,1.79778906]
[1672901034253,8.68992427,1251.0,1250.9,4.19465576]
[1672901034462,6.18992427,1251.0,1250.9,4.19465576]
[1672901034674,6.18992427,1251.0,1250.9,2.3968667]
[1672901035521,2.98212427,1251.0,1250.9,2.3968667]
[1672901038144,2.98212427,1251.0,1250.9,4.19431672]
[1672901041712,2.98212427,1251.0,1250.9,2.99575966]
[1672901041921,5.7078,1251.1,1250.9,2.99575966]
[1672901042125,9.27096299,1251.1,1250.9,1.19830964]
[1672901043079,9.27096299,1251.1,1250.9,2.99575966]
[1672901043287,9.27096299,1251.1,1250.9,1.19830964]
[1672901043494,2.98443259,1251.0,1250.9,2.99575966]
[1672901043819,2.98443259,1251.0,1250.9,2.99541908]
[1672901044545,2.98443259,1251.0,1250.9,1.79745002]
[1672901048438,2.98443259,1251.0,1250.9,2.99532381]
[1672901048649,2.98443259,1251.0,1250.9,2.99530992]
[1672901050966,2.98355566,1251.0,1250.9,1.1978599]
[1672901051169,9.27096299,1251.1,1250.9,1.1978599]
[1672901052540,9.27096299,1251.1,1250.8,2.99530992]
[1672901052750,6.19078563,1250.9,1250.8,2.99530992]
[1672901053172,6.19078563,1250.9,1250.8,1.79745002]
[1672901054014,8.57710609,1250.9,1250.8,1.79745002]
[1672901054536,5.59412046,1250.9,1250.8,1.79745002]
[1672901054747,5.59412046,1250.9,1250.8,4.19431672]
[1672901055161,5.59412046,1250.9,1250.8,2.3968667]
[1672901055369,5.59412046,1250.9,1250.8,4.1931941]
[1672901055903,2.38632046,1250.9,1250.8,2.3968667]
[1672901056530,2.38632046,1250.9,1250.8,4.19323466]
[1672901057586,2.38632046,1250.9,1250.8,2.3968667]
[1672901060749,2.38632046,1250.9,1250.8,3.81359165]
[1672901060962,2.38632046,1250.9,1250.8,3.81359535]
[1672901063154,2.38632046,1250.9,1250.8,2.3968667]
[1672901063375,2.38632046,1250.9,1250.8,3.8135985]
[1672901069992,5.36930609,1250.9,1250.8,3.8135985]
[1672901076931,2.98298563,1250.9,1250.8,3.8135985]
[1672901082085,5.37141635,1250.9,1250.8,3.8135985]
[1672901082501,2.98298563,1250.9,1250.8,3.8135985]
[1672901085974,2.97721532,1250.9,1250.8,2.3968667]
[1672901086177,2.97721532,1250.9,1250.8,6.69517534]
[1672901086494,5.47721532,1250.9,1250.8,4.19517534]
[1672901087967,2.97721532,1250.9,1250.8,4.19517534]
[1672901088383,2.97721532,1250.9,1250.8,2.3968667]
[1672901088803,5.47721532,1250.9,1250.8,4.19507319]
[1672901089122,5.47721532,1250.9,1250.8,2.3968667]
[1672901089747,2.97721532,1250.9,1250.8,2.3968667]
[1672901091859,2.97721532,1250.9,1250.8,3.81363438]
[1672901092066,2.97721532,1250.9,1250.8,2.3968667]
[1672901093960,2.97721532,1250.9,1250.8,3.81362962]
[1672901095641,2.97721532,1250.9,1250.8,4.19510266]
[1672901095842,2.97721532,1250.9,1250.8,2.3968667]
[1672901096164,2.97721532,1250.9,1250.8,3.81363629]
[1672901097843,5.36589894,1250.9,1250.8,3.81363629]
[1672901098061,5.36589894,1250.9,1250.8,6.80847654]
[1672901099523,2.38868362,1250.9,1250.8,6.80847654]
[1672901101743,9.27096299,1251.1,1250.8,3.81363629]
[1672901101944,9.27096299,1251.1,1251.0,1.19874093]
[1672901102153,9.27096299,1251.1,1250.9,5.49685232]
[1672901102469,13.44762087,1251.1,1250.9,5.49685232]
[1672901103627,13.44762087,1251.1,1250.9,2.99685232]
[1672901103838,3.56316299,1251.0,1250.9,2.99685232]
[1672901104042,13.44762087,1251.1,1250.9,2.99685232]
[1672901104472,13.44762087,1251.1,1250.9,1.19874093]
[1672901104784,3.56316299,1251.0,1250.9,1.19874093]
[1672901105197,13.44762087,1251.1,1250.9,2.99685232]
[1672901106358,9.27096299,1251.1,1250.9,2.99685232]
[1672901106989,9.27096299,1251.1,1250.9,2.99404764]
[1672901107619,9.27096299,1251.1,1250.9,1.79811139]
[1672901114659,6.06316299,1251.1,1250.9,1.79811139]
[1672901114976,9.27096299,1251.1,1250.9,1.79811139]
[1672901119383,13.44762087,1251.1,1250.9,1.79811139]
[1672901120443,13.44762087,1251.1,1250.8,6.69497809]
[1672901120752,5.48541262,1250.9,1250.8,6.69497809]
[1672901120963,2.98541262,1250.9,1250.8,6.69497809]
[1672901121280,2.98541262,1250.9,1250.8,4.8968667]
[1672901122219,2.98541262,1250.9,1250.8,6.69492881]
[1672901122442,2.98541262,1250.9,1250.8,4.8968667]
[1672901123275,2.98541262,1250.9,1250.8,6.31362244]
[1672901125792,2.38851841,1250.9,1250.8,9.30846269]
[1672901126010,2.38851841,1250.9,1250.8,6.91159599]
[1672901128313,2.38851841,1250.9,1250.8,9.30866703]
[1672901128735,2.38851841,1250.9,1250.8,6.91159599]
[1672901128942,2.38851841,1250.9,1250.8,9.30853574]
[1672901129363,2.38851841,1250.9,1250.8,6.91159599]
[1672901132210,2.38851841,1250.9,1250.8,9.30837161]
[1672901132421,2.38851841,1250.9,1250.8,6.91159599]
[1672901132944,2.38851841,1250.9,1250.8,6.31352533]
[1672901133680,2.38851841,1250.9,1250.8,9.30836558]
[1672901135257,2.38851841,1250.9,1250.8,14.89159599]
[1672901136100,2.38851841,1250.9,1250.8,18.09939599]
[1672901137879,2.38851841,1250.9,1250.8,20.49596073]
[1672901138728,2.38851841,1250.9,1250.8,17.50112048]
[1672901138935,2.38851841,1250.9,1250.8,20.49596073]
[1672901140303,2.38851841,1250.9,1250.8,17.50112048]
[1672901141146,2.38851841,1250.9,1250.8,14.29332048]
[1672901141464,2.38851841,1250.9,1250.8,17.50112048]
[1672901142294,2.38851841,1250.9,1250.8,14.29332048]
[1672901142508,2.38851841,1250.9,1250.8,17.50112048]
[1672901143028,2.38851841,1250.9,1250.8,20.49596073]
[1672901143556,2.38851841,1250.9,1250.8,18.09939599]
[1672901143769,2.38851841,1250.9,1250.8,20.4959483]
[1672901145028,2.38851841,1250.9,1250.8,14.89159599]
[1672901145242,2.38851841,1250.9,1250.8,18.09939599]
[1672901146184,2.38851841,1250.9,1250.8,20.4961837]
[1672901147233,2.38851841,1250.9,1250.8,17.2883837]
[1672901148599,2.98522847,1250.9,1250.8,11.89675574]
[1672901148809,1.19413933,1250.9,1250.8,11.89675574]
[1672901149020,2.9846523,1251.0,1250.8,11.89675574]
[1672901149229,2.9846523,1251.0,1250.9,15.59862577]
[1672901149442,1.79108914,1251.0,1250.9,15.59862577]
[1672901149652,1.79108914,1251.0,1250.9,17.99396624]
[1672901149858,1.79108914,1251.0,1250.9,15.59862577]
[1672901150284,2.38851841,1251.0,1250.9,7.01994905]
[1672901151010,2.38851841,1251.0,1250.9,14.99994905]
[1672901151220,2.38851841,1251.0,1250.9,5.60319331]
[1672901151757,2.38851841,1251.0,1250.9,13.58319331]
[1672901152381,2.38851841,1251.0,1250.9,5.60319331]
[1672901152592,5.37393103,1251.0,1250.9,1.79648092]
[1672901152808,2.98541262,1251.0,1250.9,1.79648092]
[1672901155118,5.37220823,1251.0,1250.9,1.79648092]
[1672901155750,2.98541262,1251.0,1250.9,1.79648092]
[1672901191065,9.27096299,1251.1,1250.9,1.79648092]
[1672901196003,6.06316299,1251.1,1250.9,1.79648092]
[1672901196317,9.27096299,1251.1,1250.9,1.79648092]
[1672901196523,6.06316299,1251.1,1250.9,1.79648092]
[1672901196739,9.27096299,1251.1,1250.9,1.79648092]
[1672901197047,6.06316299,1251.1,1250.9,1.79648092]
[1672901197267,9.27096299,1251.1,1250.9,1.79648092]
[1672901197790,9.27096299,1251.1,1250.9,4.19187423]
[1672901198836,9.27096299,1251.1,1250.9,1.79648092]
[1672901199054,2.5,1251.0,1250.8,1.79648092]
[1672901199361,3.2078,1250.9,1250.8,1.79648092]
[1672901201157,6.1922034,1250.9,1250.8,1.79648092]
[1672901209249,6.1922034,1250.9,1250.7,4.19187423]
[1672901209451,2.3859931,1250.8,1250.7,4.19187423]
[1672901209769,4.3859931,1250.8,1250.7,4.19187423]
[1672901210409,2.3859931,1250.8,1250.7,4.19187423]
[1672901213451,2.3859931,1250.8,1250.7,1.79648092]
[1672901214398,2.3859931,1250.8,1250.7,4.19187423]
[1672901217756,2.3859931,1250.8,1250.7,4.19157904]
[1672901217960,2.3859931,1250.8,1250.7,2.39539331]
[1672901218173,2.3859931,1250.8,1250.7,4.19163641]
[1672901220810,2.3859931,1250.8,1250.7,2.39539331]
[1672901221650,2.3859931,1250.8,1250.7,4.19171474]
[1672901221864,2.3859931,1250.8,1250.7,2.39539331]
[1672901222486,2.3859931,1250.8,1250.7,4.19178155]
[1672901224072,2.3859931,1250.8,1250.7,2.39539331]
[1672901224483,2.3859931,1250.8,1250.7,4.19190289]
[1672901226484,7.3703965,1250.8,1250.7,1.79650958]
[1672901226696,7.36463441,1250.8,1250.7,4.29650958]
[1672901227223,2.38023101,1250.8,1250.7,4.29650958]
[1672901227434,5.36463441,1250.8,1250.7,4.29650958]
[1672901228692,2.9844034,1250.8,1250.7,4.29650958]
[1672901229008,2.9844034,1250.8,1250.7,2.99437639]
[1672901229214,2.9844034,1250.8,1250.7,1.19786681]
[1672901229431,2.9844034,1250.8,1250.7,1.79650958]
[1672901229633,2.9844034,1250.8,1250.7,4.29650958]
[1672901233423,2.9844034,1250.8,1250.7,1.79650958]
[1672901233948,2.9844034,1250.8,1250.7,4.19190289]
[1672901236159,2.9844034,1250.8,1250.7,1.79650958]
[1672901236359,4.9844034,1250.8,1250.7,1.79650958]
[1672901238038,4.9844034,1250.8,1250.7,4.19190289]
[1672901239727,2.9844034,1250.8,1250.7,1.79650958]
[1672901240455,6.1922034,1250.8,1250.7,1.79650958]
[1672901242147,6.1922034,1250.8,1250.7,4.19190289]
[1672901242346,2.9844034,1250.8,1250.7,1.79650958]
[1672901242768,5.4844034,1250.8,1250.7,1.79650958]
[1672901244464,2.9844034,1250.8,1250.7,1.79650958]
[1672901244660,5.4844034,1250.8,1250.7,1.79650958]
[1672901245085,2.9844034,1250.8,1250.7,1.79650958]
[1672901245400,2.9844034,1250.8,1250.7,4.19190289]
[1672901246346,2.9844034,1250.8,1250.7,3.81226926]
[1672901246558,2.9844034,1250.8,1250.7,4.19342142]
[1672901248138,2.9844034,1250.8,1250.7,2.39539331]
[1672901248342,2.9844034,1250.8,1250.7,4.19350251]
[1672901249821,2.9844034,1250.8,1250.7,2.39539331]
[1672901250024,2.9844034,1250.8,1250.7,4.19351507]
[1672901250656,2.9844034,1250.8,1250.7,2.39539331]
[1672901250975,2.9844034,1250.8,1250.7,4.19351512]
[1672901254020,2.9844034,1250.8,1250.7,2.39539331]
[1672901255071,2.9844034,1250.8,1250.7,4.19357215]
[1672901255914,2.9844034,1250.8,1250.7,2.39539331]
[1672901261588,2.9844034,1250.8,1250.7,4.19391009]
[1672901262215,6.1922034,1250.8,1250.7,4.19391009]
[1672901262739,2.9844034,1250.8,1250.7,4.19391009]
[1672901262952,6.1922034,1250.8,1250.7,4.19391009]
[1672901265585,2.9844034,1250.8,1250.7,4.19391009]
[1672901265892,6.1922034,1250.8,1250.7,4.19391009]
[1672901266312,2.9844034,1250.8,1250.7,4.19391009]
[1672901266627,6.1922034,1250.8,1250.7,4.19391009]
[1672901266837,6.1922034,1250.8,1250.7,2.39539331]
[1672901267048,3.2078,1250.8,1250.7,4.19408572]
[1672901267258,3.2078,1250.8,1250.7,4.29869241]
[1672901267991,3.2078,1250.8,1250.7,1.79869241]
[1672901269153,6.19464133,1250.8,1250.7,4.19408572]
[1672901273667,2.98684133,1250.8,1250.7,4.19408572]
[1672901273880,6.19464133,1250.8,1250.7,4.19408572]
[1672901277147,3.2078,1250.8,1250.7,4.19408572]
[1672901277672,6.19458004,1250.8,1250.7,4.19408572]
[1672901277882,3.2078,1250.8,1250.7,4.19408572]
[1672901278202,6.19459828,1250.8,1250.7,4.19408572]
[1672901278720,2.98679828,1250.8,1250.7,4.19408572]
[1672901279035,6.19459828,1250.8,1250.7,4.19408572]
[1672901281028,3.2078,1250.8,1250.7,4.19408572]
[1672901281553,6.19465153,1250.8,1250.7,4.19408572]
[1672901283031,3.2078,1250.8,1250.7,1.79869241]
[1672901284497,5.7078,1250.8,1250.7,1.79869241]
[1672901287335,2.5,1250.8,1250.7,1.79869241]
[1672901287656,5.7078,1250.8,1250.7,1.79869241]
[1672901288919,3.2078,1250.8,1250.7,1.79869241]
[1672901290175,5.56316299,1250.9,1250.7,4.19408572]
[1672901290378,8.77096299,1250.9,1250.8,1.19909918]
[1672901290589,8.77096299,1250.9,1250.8,3.69909918]
[1672901291540,8.77096299,1250.9,1250.8,1.19909918]
[1672901302675,5.56316299,1250.9,1250.8,1.19909918]
[1672901302899,8.77096299,1250.9,1250.8,1.19909918]
[1672901303614,12.94762087,1250.9,1250.8,1.19909918]
[1672901304880,9.73982087,1250.9,1250.8,1.19909918]
[1672901305199,12.94762087,1250.9,1250.8,1.19909918]
[1672901306988,9.73982087,1250.9,1250.8,1.19909918]
[1672901307195,12.94762087,1250.9,1250.8,1.19909918]
[1672901308253,0.00583678,1250.8,1250.7,2.99779159]
[1672901308463,6.09143827,1250.8,1250.7,1.19909918]
[1672901309094,9.29923827,1250.8,1250.7,1.19909918]
[1672901311188,9.29923827,1250.8,1250.6,5.49779159]
[1672901311397,2.5,1250.7,1250.6,5.49779159]
[1672901312561,9.29923827,1250.8,1250.6,5.49779159]
[1672901313193,2.98119463,1250.7,1250.6,5.49779159]
[1672901313404,5.48119463,1250.7,1250.6,5.49779159]
[1672901314877,2.98119463,1250.7,1250.6,5.49779159]
[1672901315923,6.18899463,1250.7,1250.6,5.49779159]
[1672901317722,6.18899463,1250.7,1250.6,2.99779159]
[1672901317930,6.18899463,1250.7,1250.6,1.19909918]
[1672901317931,3.2078,1250.7,1250.6,1.19909918]
[1672901318139,3.2078,1250.7,1250.6,3.69909918]
[1672901318354,3.2078,1250.7,1250.6,1.19909918]
[1672901318666,3.2078,1250.7,1250.6,3.69909918]
[1672901318876,3.2078,1250.7,1250.6,5.49779159]
[1672901319075,3.2078,1250.7,1250.6,3.69909918]
[1672901320244,3.2078,1250.7,1250.6,5.49779159]
[1672901321190,3.2078,1250.7,1250.6,3.69909918]
[1672901321400,3.2078,1250.7,1250.6,5.49779159]
[1672901322868,5.7078,1250.7,1250.6,5.49779159]
[1672901324866,2.5,1250.7,1250.6,5.49779159]
[1672901325076,3.2078,1250.7,1250.6,5.49779159]
[1672901326023,3.2078,1250.7,1250.6,2.99779159]
[1672901326645,3.2078,1250.7,1250.6,5.49779159]
[1672901328233,5.71363678,1250.8,1250.6,5.49779159]
[1672901328445,3.21363678,1250.8,1250.6,5.49779159]
[1672901328858,5.71363678,1250.8,1250.6,5.49779159]
[1672901329067,3.21363678,1250.8,1250.7,3.69909918]
[1672901329387,3.21363678,1250.8,1250.7,5.49779159]
[1672901330227,0.00583678,1250.8,1250.7,5.49779159]
[1672901330438,0.00583678,1250.8,1250.7,5.49665582]
[1672901331815,3.21363678,1250.8,1250.7,3.69796341]
[1672901332019,5.71363678,1250.8,1250.6,5.49665582]
[1672901332221,5.71363678,1250.8,1250.7,1.19796341]
[1672901332641,5.71363678,1250.8,1250.6,5.49665582]
[1672901333166,3.21363678,1250.8,1250.7,1.19796341]
[1672901333803,5.71363678,1250.8,1250.7,1.19796341]
[1672901334006,9.29923827,1250.8,1250.6,5.49665582]
[1672901334217,2.98628937,1250.7,1250.6,4.29869241]
[1672901334428,5.48628937,1250.7,1250.6,4.29869241]
[1672901334959,2.98628937,1250.7,1250.6,4.29869241]
[1672901336222,6.19408937,1250.7,1250.6,4.29869241]
[1672901338948,6.19408937,1250.7,1250.6,1.79869241]
[1672901339159,3.2078,1250.7,1250.6,1.19831439]
[1672901339370,3.2078,1250.7,1250.6,5.4970068]
[1672901340216,3.2078,1250.7,1250.6,3.69831439]
[1672901341585,3.2078,1250.7,1250.6,5.4970068]
[1672901343576,6.09143827,1250.8,1250.6,5.4970068]
[1672901343794,3.2078,1250.7,1250.6,5.4970068]
[1672901347467,3.2078,1250.7,1250.6,4.29869241]
[1672901347674,6.1945153,1250.7,1250.6,4.29869241]
[1672901348095,3.2078,1250.7,1250.6,1.79869241]
[1672901348302,3.2078,1250.7,1250.6,2.99745233]
[1672901348724,3.2078,1250.7,1250.6,4.29869241]
[1672901349141,6.19451469,1250.7,1250.6,4.29869241]
[1672901351156,3.2078,1250.7,1250.6,4.29869241]
[1672901351366,3.2078,1250.7,1250.6,5.4974471]
[1672901351577,3.2078,1250.7,1250.6,4.29869241]
[1672901352100,3.2078,1250.7,1250.6,5.4974542]
[1672901352416,3.2078,1250.7,1250.6,2.9974542]
[1672901354301,3.2078,1250.7,1250.6,1.19876179]
[1672901355141,3.2078,1250.7,1250.6,2.9974542]
[1672901356093,6.09143827,1250.8,1250.6,2.9974542]
[1672901356301,3.2078,1250.7,1250.6,2.9974542]
[1672901359555,3.2078,1250.7,1250.6,1.19876179]
[1672901359872,3.2078,1250.7,1250.6,2.9974542]
[1672901361132,6.09143827,1250.8,1250.6,2.9974542]
[1672901361339,3.2078,1250.7,1250.6,2.9974542]
[1672901362923,3.2078,1250.7,1250.6,1.19876179]
[1672901367342,3.2078,1250.7,1250.6,3.69876179]
[1672901367654,3.2078,1250.7,1250.6,2.9974542]
[1672901368186,3.2078,1250.7,1250.6,1.19876179]
[1672901368601,3.2078,1250.7,1250.6,2.9974542]
[1672901369128,3.2078,1250.7,1250.6,1.19876179]
[1672901369650,6.19388892,1250.7,1250.6,4.29869241]
[1672901371225,6.19388892,1250.7,1250.6,6.69408572]
[1672901371226,2.98608892,1250.7,1250.6,6.69408572]
[1672901371437,2.98608892,1250.7,1250.6,6.31237397]
[1672901371656,2.98608892,1250.7,1250.6,4.89539331]
[1672901371864,2.98608892,1250.7,1250.6,6.3123672]
[1672901372278,2.98608892,1250.7,1250.6,6.69328483]
[1672901373341,2.98608892,1250.7,1250.6,4.29789152]
[1672901374076,2.98608892,1250.7,1250.6,6.69328483]